bitfinex-derivatives/quotes_BNBF0:USTF0_20250115
["timestamp","ask_amount","ask_price","bid_price","bid_amount"]
[1736984214661,1.8881615,713.99,712.82,2.04157574]
[1736984214856,1.8881615,713.98,712.82,2.04157574]
[1736984215157,1.8881615,713.97,712.82,2.04157574]
[1736984215357,1.8881615,713.96,712.82,2.04157574]
[1736984215657,1.8881615,713.95,712.82,2.04157574]
[1736984215854,1.8881615,713.94,712.82,2.04157574]
[1736984216055,1.88824283,713.93,712.82,2.04157574]
[1736984216361,1.88824283,713.92,712.82,2.04157574]
[1736984216557,0.76001776,713.91,712.82,2.04157574]
[1736984216858,1.04440202,714.28,712.82,2.04157574]
[1736984217059,3.1041907,714.27,712.82,2.04157574]
[1736984217261,3.1041907,714.26,712.82,2.04157574]
[1736984217559,3.1041907,714.25,712.82,3.25957574]
[1736984217757,3.1041907,714.24,712.82,3.25957574]
[1736984217960,3.1041907,714.23,712.82,3.25957574]
[1736984218158,3.1041907,714.22,712.82,3.25957574]
[1736984218358,3.1040959,714.21,712.82,3.25957574]
[1736984218559,1.04440202,714.31,712.82,3.25957574]
[1736984218754,3.10397749,714.3,712.82,3.25957574]
[1736984218961,3.10397749,714.29,712.82,3.25957574]
[1736984219155,1.04440202,714.22,712.82,3.25957574]
[1736984219357,3.10397749,714.21,712.82,3.25957574]
[1736984219555,3.10397749,714.2,712.82,3.25957574]
[1736984219758,3.10397749,714.19,712.82,3.25957574]
[1736984219956,3.10397749,714.18,712.82,3.25957574]
[1736984220154,3.10397749,714.17,712.82,3.25957574]
[1736984220354,3.10397749,714.16,712.82,3.25957574]
[1736984220558,3.10397749,714.15,712.82,3.25957574]
[1736984220859,3.10397749,714.14,712.82,3.25957574]
[1736984221060,3.10397749,714.13,712.82,3.25957574]
[1736984221261,3.10397749,714.12,712.82,3.25957574]
[1736984221461,3.10397749,714.11,712.82,3.25957574]
[1736984221761,3.10397749,714.1,712.82,3.25957574]
[1736984221962,1.88803294,714.09,712.82,3.25957574]
[1736984222260,1.88803294,714.08,712.82,3.25957574]
[1736984222460,1.88803294,714.07,712.82,3.25957574]
[1736984222656,1.88803294,714.06,712.82,3.25957574]
[1736984222861,1.88803294,714.05,712.82,3.25957574]
[1736984223056,1.88803294,714.04,712.82,3.25957574]
[1736984223263,1.88803294,714.03,712.82,3.25957574]
[1736984223456,1.1280676,714.02,712.82,3.25957574]
[1736984223660,1.8878085,714.01,712.82,3.25957574]
[1736984223862,1.8878085,714.0,712.82,3.25957574]
[1736984224161,1.8878085,713.99,712.82,3.25957574]
[1736984224362,1.04440202,714.49,712.82,3.25957574]
[1736984224363,1.8878085,713.98,712.82,3.25957574]
[1736984224662,1.8878085,713.97,712.82,3.25957574]
[1736984224864,1.8878085,713.96,712.82,3.25957574]
[1736984225057,1.04440202,714.5,712.82,3.25957574]
[1736984225260,3.10284063,714.49,712.82,3.25957574]
[1736984225559,3.10284063,714.48,712.82,3.25957574]
[1736984225757,3.10284063,714.47,712.82,3.25957574]
[1736984225959,3.10284063,714.46,712.82,3.25957574]
[1736984226262,3.10284063,714.45,712.82,3.25957574]
[1736984226462,1.04440202,714.5,712.82,3.25957574]
[1736984226463,3.10284063,714.44,712.82,3.25957574]
[1736984226659,3.10284063,714.43,712.82,3.25957574]
[1736984226864,3.10284063,714.42,712.82,3.25957574]
[1736984227165,3.10284063,714.41,712.82,3.25957574]
[1736984227359,3.10284063,714.4,712.82,3.25957574]
[1736984227564,3.10284063,714.39,712.82,3.25957574]
[1736984227761,3.10284063,714.38,712.82,3.25957574]
[1736984228064,3.10284063,714.37,712.82,3.25957574]
[1736984228256,1.04440202,714.58,712.82,3.25957574]
[1736984228257,3.10284063,714.36,712.82,3.25957574]
[1736984228461,3.10284063,714.35,712.82,3.25957574]
[1736984228661,3.10284063,714.34,712.82,3.25957574]
[1736984228861,3.10284063,714.33,712.82,3.25957574]
[1736984229162,3.10284063,714.32,712.82,3.25957574]
[1736984229358,3.10284063,714.31,712.82,3.25957574]
[1736984229559,3.10284063,714.3,712.82,3.25957574]
[1736984229761,3.10284063,714.29,712.82,3.25957574]
[1736984229963,1.04440202,714.53,712.82,3.25957574]
[1736984229964,3.10284063,714.28,712.82,3.25957574]
[1736984230157,3.10284063,714.27,712.82,3.25957574]
[1736984230358,3.10284063,714.26,712.82,3.25957574]
[1736984230561,3.10284063,714.25,712.82,3.25957574]
[1736984230762,3.10284063,714.24,712.82,3.25957574]
[1736984230963,0.27986902,714.62,712.82,3.25957574]
[1736984230964,3.10284063,714.23,712.82,3.25957574]
[1736984231164,3.10284063,714.22,712.82,3.25957574]
[1736984231361,3.10284063,714.21,712.82,3.25957574]
[1736984231566,3.10194036,714.2,712.82,3.25957574]
[1736984231865,3.10194036,714.19,712.82,3.25957574]
[1736984232063,3.10194036,714.18,712.82,3.25957574]
[1736984232263,3.10194036,714.17,712.82,3.25957574]
[1736984232459,3.10194036,714.16,712.82,3.25957574]
[1736984232666,3.10194036,714.15,712.82,3.25957574]
[1736984232867,3.10194036,714.14,712.82,3.25957574]
[1736984233066,3.10194036,714.13,712.82,3.25957574]
[1736984233264,3.10194036,714.12,712.82,3.25957574]
[1736984233461,3.10194036,714.11,712.82,3.25957574]
[1736984233660,3.10194036,714.1,712.82,3.25957574]
[1736984233965,1.88699725,714.09,712.82,3.25957574]
[1736984234169,1.88699725,714.08,712.82,3.25957574]
[1736984234466,1.88699725,714.07,712.82,3.25957574]
[1736984234766,1.88699725,714.06,712.82,3.25957574]
[1736984234968,1.88699725,714.05,712.82,3.25957574]
[1736984235266,1.88699725,714.04,712.82,3.25957574]
[1736984235466,1.88699725,714.03,712.82,3.25957574]
[1736984235667,1.04440202,714.43,712.82,3.25957574]
[1736984235668,1.88699725,714.02,712.82,3.25957574]
[1736984235869,1.88699725,714.01,712.82,3.25957574]
[1736984236069,1.88699725,714.0,712.82,3.25957574]
[1736984236263,1.88699725,713.99,712.82,3.25957574]
[1736984236462,1.88699725,713.98,712.82,3.25957574]
[1736984236663,1.04440202,714.33,712.82,3.25957574]
[1736984236867,1.04440202,714.31,712.82,3.25957574]
[1736984237069,3.10109307,714.3,712.82,3.25957574]
[1736984237270,3.10109307,714.29,712.82,3.25957574]
[1736984237569,3.10109307,714.28,712.82,3.25957574]
[1736984237771,3.10107849,714.27,712.82,3.25957574]
[1736984237970,3.10107849,714.26,712.82,3.25957574]
[1736984238272,3.10107849,714.25,712.82,3.25957574]
[1736984238470,3.10107849,714.24,712.82,3.25957574]
[1736984238671,3.10107849,714.23,712.82,3.25957574]
[1736984238871,3.10107849,714.22,712.82,3.25957574]
[1736984239069,3.10107849,714.21,712.82,3.25957574]
[1736984239266,3.10107849,714.2,712.82,3.25957574]
[1736984239469,3.10107849,714.19,712.82,3.25957574]
[1736984239668,3.10107849,714.18,712.82,3.25957574]
[1736984239869,3.10111657,714.17,712.82,3.25957574]
[1736984240073,3.10111657,714.16,712.82,3.25957574]
[1736984240269,3.10111657,714.15,712.82,3.25957574]
[1736984240470,3.10111657,714.14,712.82,3.25957574]
[1736984240671,3.10111657,714.13,712.82,3.25957574]
[1736984240873,3.10111657,714.12,712.82,3.25957574]
[1736984241168,3.10111657,714.11,712.82,3.25957574]
[1736984241370,3.10111657,714.1,712.82,3.25957574]
[1736984241569,3.10111657,714.09,712.82,3.25957574]
[1736984241771,3.10111657,714.08,712.82,3.25957574]
[1736984241973,3.10111657,714.07,712.82,3.25957574]
[1736984242172,3.10111657,714.06,712.82,3.25957574]
[1736984242374,3.10111657,714.05,712.82,3.25957574]
[1736984242572,3.10111657,714.04,712.82,3.25957574]
[1736984242777,3.10111657,714.03,712.82,3.25957574]
[1736984242977,1.88630966,714.02,712.82,3.25957574]
[1736984243177,1.88630966,714.01,712.82,3.25957574]
[1736984243380,1.88630966,714.0,712.82,3.25957574]
[1736984243674,1.88630966,713.99,712.82,3.25957574]
[1736984243879,1.88635597,713.98,712.82,3.25957574]
[1736984244179,1.88635597,713.97,712.82,3.25957574]
[1736984244378,1.88635597,713.96,712.82,3.25957574]
[1736984244581,1.88635597,713.95,712.82,3.25957574]
[1736984244880,1.88635597,713.94,712.82,3.25957574]
[1736984245080,1.88635597,713.93,712.82,3.25957574]
[1736984245276,1.12705534,713.92,712.82,3.25957574]
[1736984245477,1.12705534,713.91,712.82,3.25957574]
[1736984245681,1.04440202,714.19,712.82,3.25957574]
[1736984245881,3.1134232,714.18,712.82,3.25957574]
[1736984246180,1.04440202,714.16,712.82,3.25957574]
[1736984246381,3.11342362,714.15,712.82,3.25957574]
[1736984246577,3.11342362,714.14,712.82,3.25957574]
[1736984246875,3.11342362,714.13,712.82,3.25957574]
[1736984247075,1.04440202,714.16,712.82,3.25957574]
[1736984247076,3.11342362,714.12,712.82,3.25957574]
[1736984247280,3.11342362,714.11,712.82,3.25957574]
[1736984247475,3.11342362,714.1,712.82,3.25957574]
[1736984247681,3.11342362,714.09,712.82,3.25957574]
[1736984247881,3.11342362,714.08,712.82,3.25957574]
[1736984248078,3.11342362,714.07,712.82,3.25957574]
[1736984248283,3.11342362,714.06,712.82,3.25957574]
[1736984248479,3.11342362,714.05,712.82,3.25957574]
[1736984248679,3.11342362,714.04,712.83,2.76689139]
[1736984248876,3.11342362,714.03,712.85,0.28056393]
[1736984249082,3.11342362,714.02,712.85,0.28056393]
[1736984249382,3.11342362,714.01,712.86,2.76689139]
[1736984249582,1.89852375,714.0,712.88,0.28055212]
[1736984249881,1.89852375,713.99,712.88,0.28055212]
[1736984250085,1.89856275,713.98,712.88,3.39555212]
[1736984250282,1.04440202,714.12,712.88,3.39555212]
[1736984250283,1.89856275,713.97,712.88,3.39555212]
[1736984250482,1.89856275,713.96,712.88,3.39555212]
[1736984250784,1.89856275,713.95,712.89,2.76689139]
[1736984250977,1.89856275,713.94,712.91,0.28054032]
[1736984251180,1.13925034,713.93,712.91,0.28054032]
[1736984251381,1.04440202,714.11,712.91,0.28054032]
[1736984251581,3.11365323,714.1,712.91,0.28054032]
[1736984251776,3.11365323,714.09,712.91,0.28054032]
[1736984251981,3.11369559,714.08,712.91,0.28054032]
[1736984252181,3.11369559,714.07,712.91,0.28054032]
[1736984252383,3.11369559,714.06,712.92,2.76689139]
[1736984252685,3.11375579,714.05,712.94,0.28052851]
[1736984252878,3.11375579,714.04,712.94,0.28052851]
[1736984253080,3.11375579,714.03,712.94,0.28052851]
[1736984253282,3.11375579,714.02,712.94,0.28052851]
[1736984253480,3.11375579,714.01,712.94,0.28052851]
[1736984253679,1.89872645,714.0,712.94,0.28052851]
[1736984253986,1.89872645,713.99,712.94,0.28052851]
[1736984254281,1.89869934,713.98,712.94,0.28052851]
[1736984254482,1.139306,713.97,712.94,0.28052851]
[1736984254684,1.04440202,714.18,712.94,0.28052851]
[1736984254986,3.11358525,714.17,712.94,0.28052851]
[1736984255285,3.11358525,714.16,712.94,0.28052851]
[1736984255486,3.11358525,714.15,712.94,0.28052851]
[1736984255786,3.11358525,714.14,712.94,0.28052851]
[1736984255982,1.25328242,714.73,712.94,0.28052851]
[1736984255983,3.11358525,714.13,712.94,0.28052851]
[1736984256285,3.11352056,714.12,712.94,0.28052851]
[1736984256487,3.11352056,714.11,712.94,0.28052851]
[1736984256680,3.11352056,714.1,712.94,0.28052851]
[1736984256888,3.11352056,714.09,712.94,0.28052851]
[1736984257081,1.89860109,714.08,712.94,0.28052851]
[1736984257285,1.89860109,714.07,712.94,0.28052851]
[1736984257489,1.89860109,714.06,712.94,0.28052851]
[1736984257786,1.89860109,714.05,712.94,0.28052851]
[1736984257980,1.89860109,714.04,712.94,0.28052851]
[1736984258182,1.89860109,714.03,712.94,0.28052851]
[1736984258383,1.89860109,714.02,712.94,0.28052851]
[1736984258688,1.13927642,714.01,712.94,0.28052851]
[1736984258888,1.04440202,714.28,712.94,0.28052851]
[1736984259089,3.11312455,714.27,712.94,0.28052851]
[1736984259289,3.11312455,714.26,712.94,0.28052851]
[1736984259489,3.11312455,714.25,712.94,0.28052851]
[1736984259787,3.11312455,714.24,712.94,0.28052851]
[1736984259989,3.11312455,714.23,712.94,0.28052851]
[1736984260190,3.11303855,714.22,712.94,0.28052851]
[1736984260385,3.11303855,714.21,712.94,0.28052851]
[1736984260590,3.11303855,714.2,712.94,0.28052851]
[1736984260889,3.11303855,714.19,712.94,0.28052851]
[1736984261090,3.11303855,714.18,712.94,0.28052851]
[1736984261290,3.11303855,714.17,712.94,0.28052851]
[1736984261483,3.11303855,714.16,712.94,0.28052851]
[1736984261687,1.04440202,714.31,712.94,0.28052851]
[1736984261688,3.11303855,714.15,712.94,0.28052851]
[1736984261883,3.11303855,714.14,712.94,0.28052851]
[1736984262087,3.11303855,714.13,712.94,0.28052851]
[1736984262287,3.11293326,714.12,712.94,0.28052851]
[1736984262486,3.11293326,714.11,712.94,0.28052851]
[1736984262683,1.04440202,714.29,712.94,0.28052851]
[1736984262684,3.11293326,714.1,712.94,0.28052851]
[1736984262986,3.11293326,714.09,712.94,0.28052851]
[1736984263185,3.11293326,714.08,712.94,0.28052851]
[1736984263387,1.8982288,714.07,712.94,0.28052851]
[1736984263691,1.8982288,714.06,712.94,0.28052851]
[1736984263990,1.8982288,714.05,712.94,0.28052851]
[1736984264184,1.8982288,714.04,712.94,0.28052851]
[1736984264387,1.8982288,714.03,712.94,0.28052851]
[1736984264589,1.8982288,714.02,712.94,0.28052851]
[1736984264786,1.8982288,714.01,712.94,0.28052851]
[1736984264993,1.8982288,714.0,712.94,0.28052851]
[1736984265190,1.13903852,713.99,712.94,0.28052851]
[1736984265490,1.13903852,713.98,712.94,0.28052851]
[1736984265690,1.04440202,714.28,712.94,0.28052851]
[1736984265989,3.11315341,714.27,712.94,0.28052851]
[1736984266192,3.11315341,714.26,712.94,0.28052851]
[1736984266490,3.11315341,714.25,712.94,0.28052851]
[1736984266690,3.11315341,714.24,712.94,0.28052851]
[1736984266994,3.11323909,714.23,712.94,0.28052851]
[1736984267289,3.11323909,714.22,712.94,0.28052851]
[1736984267491,3.11323909,714.21,712.94,0.28052851]
[1736984267691,3.11323909,714.2,712.94,0.28052851]
[1736984267991,3.11323909,714.19,712.94,0.28052851]
[1736984268193,3.11323909,714.18,712.94,0.28052851]
[1736984268383,3.11340835,714.17,712.94,0.28052851]
[1736984268589,3.11340835,714.16,712.94,0.28052851]
[1736984268789,3.11340835,714.15,712.94,0.28052851]
[1736984268991,3.11340835,714.14,712.94,0.28052851]
[1736984269188,3.11340835,714.13,712.94,0.28052851]
[1736984269393,3.11340835,714.12,712.94,0.28052851]
[1736984269588,3.11340835,714.11,712.94,0.28052851]
[1736984269793,3.11340835,714.1,712.94,0.28052851]
[1736984269993,3.11340835,714.09,712.94,0.28052851]
[1736984270194,1.89851872,714.08,712.94,0.28052851]
[1736984270394,1.89851872,714.07,712.94,0.28052851]
[1736984270697,1.89851872,714.06,712.94,0.28052851]
[1736984270895,1.89851872,714.05,712.94,0.28052851]
[1736984271094,1.89851872,714.04,712.94,0.28052851]
[1736984271295,1.89851872,714.03,712.94,0.28052851]
[1736984271489,1.89851872,714.02,712.94,0.28052851]
[1736984271691,1.04440202,714.32,712.94,0.28052851]
[1736984271692,1.89851872,714.01,712.94,0.28052851]
[1736984271893,1.89851872,714.0,712.94,0.28052851]
[1736984272089,1.89851872,713.99,712.94,0.28052851]
[1736984272396,1.89851872,713.98,712.94,0.28052851]
[1736984272592,1.1392127,713.97,712.94,0.28052851]
[1736984272797,1.13936959,713.96,712.94,0.28052851]
[1736984272997,1.04440202,714.31,712.94,0.28052851]
[1736984273189,3.11380783,714.3,712.94,0.28052851]
[1736984273394,3.11380783,714.29,712.94,0.28052851]
[1736984273595,3.11380783,714.28,712.94,0.28052851]
[1736984273797,3.11380783,714.27,712.94,0.28052851]
[1736984274093,3.11380783,714.26,712.94,0.28052851]
[1736984274293,1.13935849,714.25,712.94,1.72852851]
[1736984274494,3.11390827,714.24,712.94,1.72852851]
[1736984274694,3.11390827,714.23,712.94,1.72852851]
[1736984274893,3.11399502,714.22,712.94,1.72852851]
[1736984275097,3.11399502,714.21,712.94,1.72852851]
[1736984275397,3.11399502,714.2,712.94,1.72852851]
[1736984275600,3.11399502,714.19,712.94,1.72852851]
[1736984275801,3.11399502,714.18,712.94,1.72852851]
[1736984276101,3.11399502,714.17,712.94,1.72852851]
[1736984276394,3.1141928,714.16,712.94,1.72852851]
[1736984276599,3.1141928,714.15,712.94,1.72852851]
[1736984276794,3.1141928,714.14,712.94,1.72852851]
[1736984277000,3.1141928,714.13,712.94,1.72852851]
[1736984277200,3.1141928,714.12,712.94,2.94852851]
[1736984277400,3.1141928,714.11,712.94,2.94852851]
[1736984277601,3.1141928,714.1,712.94,2.94852851]
[1736984277802,3.1141928,714.09,712.94,2.94852851]
[1736984278103,3.1141928,714.08,712.94,2.94852851]
[1736984278402,3.1141928,714.07,712.94,2.94852851]
[1736984278702,3.11404693,714.06,712.94,2.94852851]
[1736984278897,3.11404693,714.05,712.94,2.94852851]
[1736984279203,3.11404693,714.04,712.94,2.94852851]
[1736984279501,3.11404693,714.03,712.94,2.94852851]
[1736984279702,3.11404693,714.02,712.94,2.94852851]
[1736984279900,3.11404693,714.01,712.94,2.94852851]
[1736984280102,1.89890365,714.0,712.94,2.94852851]
[1736984280302,1.89890365,713.99,712.94,2.94852851]
[1736984280496,0.75943637,713.98,712.94,2.94852851]
[1736984280699,1.89883578,713.97,712.94,2.94852851]
[1736984280900,1.89883578,713.96,712.94,2.94852851]
[1736984281101,1.89883578,713.95,712.94,2.94852851]
[1736984281296,1.89883578,713.94,712.94,2.94852851]
[1736984281499,1.89883578,713.93,712.94,2.94852851]
[1736984281707,1.89883578,713.92,712.94,2.94852851]
[1736984282003,1.25328242,714.67,712.94,2.94852851]
[1736984282004,1.13939941,713.91,712.94,2.94852851]
[1736984282304,1.04440202,714.18,712.94,2.94852851]
[1736984282500,1.04440202,714.16,712.94,2.94852851]
[1736984282705,3.11380181,714.15,712.94,2.94852851]
[1736984282998,3.11380181,714.14,712.94,2.94852851]
[1736984283203,3.11380181,714.13,712.94,2.94852851]
[1736984283404,3.11380181,714.12,712.94,2.94852851]
[1736984283606,3.11380181,714.11,712.94,2.94852851]
[1736984283800,3.11380181,714.1,712.94,2.94852851]
[1736984284000,1.04440202,714.16,712.94,2.94852851]
[1736984284001,3.11378291,714.09,712.94,2.94852851]
[1736984284307,3.11378291,714.08,712.94,2.94852851]
[1736984284502,3.11378291,714.07,712.94,2.94852851]
[1736984284701,3.11378291,714.06,712.94,2.94852851]
[1736984284900,3.11378291,714.05,712.94,2.94852851]
[1736984285101,3.11378291,714.04,712.94,2.94852851]
[1736984285301,3.11378291,714.03,712.94,2.94852851]
[1736984285501,1.8987479,714.02,712.94,2.94852851]
[1736984285805,1.8987479,714.01,712.94,2.94852851]
[1736984286005,1.8987479,714.0,712.94,2.94852851]
[1736984286206,1.8987479,713.99,712.94,2.94852851]
[1736984286407,1.8987479,713.98,712.94,2.94852851]
[1736984286608,1.8987479,713.97,712.94,2.94852851]
[1736984286804,1.8987479,713.96,712.94,2.94852851]
[1736984287008,1.89872654,713.95,712.94,2.94852851]
[1736984287307,1.13935102,713.94,712.94,2.94852851]
[1736984287509,1.04440202,714.18,712.94,2.94852851]
[1736984287809,3.11374085,714.17,712.94,2.94852851]
[1736984288005,3.11373997,714.16,712.94,2.94852851]
[1736984288205,3.11373997,714.15,712.94,2.94852851]
[1736984288406,3.11373997,714.14,712.94,2.94852851]
[1736984288606,3.11373997,714.13,712.94,2.94852851]
[1736984288807,1.04440202,714.18,712.94,2.94852851]
[1736984288808,3.11373997,714.12,712.94,2.94852851]
[1736984289006,3.11373997,714.11,712.94,2.94852851]
[1736984289205,3.11373997,714.1,712.94,2.94852851]
[1736984289508,3.11373997,714.09,712.94,2.94852851]
[1736984289709,3.11373997,714.08,712.94,2.94852851]
[1736984289904,3.11373997,714.07,712.94,2.94852851]
[1736984290110,3.11373997,714.06,712.94,2.94852851]
[1736984290312,3.11373997,714.05,712.94,2.94852851]
[1736984290509,1.04440202,714.18,712.94,2.94852851]
[1736984290708,3.11378313,714.17,712.94,2.94852851]
[1736984291011,3.11378313,714.16,712.94,2.94852851]
[1736984291312,3.11378313,714.15,712.94,2.94852851]
[1736984291505,1.25328242,714.68,712.94,2.94852851]
[1736984291506,3.11378313,714.14,712.94,2.94852851]
[1736984291708,3.11378313,714.13,712.94,2.94852851]
[1736984291908,3.11378313,714.12,712.94,2.94852851]
[1736984292108,3.11377435,714.11,712.94,2.94852851]
[1736984292309,3.11377435,714.1,712.94,2.94852851]
[1736984292607,3.11377435,714.09,712.94,2.94852851]
[1736984292810,3.11377435,714.08,712.94,2.94852851]
[1736984293008,1.89873656,714.07,712.94,2.94852851]
[1736984293205,1.89873656,714.06,712.94,2.94852851]
[1736984293408,1.89873656,714.05,712.94,2.94852851]
[1736984293711,1.89873656,714.04,712.94,2.94852851]
[1736984293905,1.89873656,714.03,712.94,2.94852851]
[1736984294107,1.89874012,714.02,712.94,2.94852851]
[1736984294310,1.89874012,714.01,712.94,2.94852851]
[1736984294513,1.89874012,714.0,712.94,2.94852851]
[1736984294713,1.89874012,713.99,712.94,2.94852851]
[1736984294913,1.89874012,713.98,712.94,2.94852851]
[1736984295113,1.89874012,713.97,712.94,2.94852851]
[1736984295307,1.13933794,713.96,712.94,2.94852851]
[1736984295511,1.04440202,714.35,712.94,2.94852851]
[1736984295712,3.11379214,714.34,712.94,2.94852851]
[1736984295914,3.11379214,714.33,712.94,2.94852851]
[1736984296114,3.11379214,714.32,712.94,2.94852851]
[1736984296313,3.11379214,714.31,712.94,2.94852851]
[1736984296615,3.11379214,714.3,712.94,2.94852851]
[1736984296810,3.11379214,714.29,712.94,2.94852851]
[1736984297014,3.11379214,714.28,712.94,2.94852851]
[1736984297214,3.11379214,714.27,712.94,2.94852851]
[1736984297411,3.11379214,714.26,712.94,2.94852851]
[1736984297611,3.11379214,714.25,712.94,2.94852851]
[1736984297817,3.11379214,714.24,712.94,2.94852851]
[1736984298017,3.11379214,714.23,712.94,2.94852851]
[1736984298217,3.11369692,714.22,712.94,2.94852851]
[1736984298411,3.11369692,714.21,712.94,2.94852851]
[1736984298615,3.11365098,714.2,712.94,2.94852851]
[1736984298816,3.11365098,714.19,712.94,2.94852851]
[1736984299012,3.11365098,714.18,712.94,2.94852851]
[1736984299218,3.11365098,714.17,712.94,2.94852851]
[1736984299421,3.11365098,714.16,712.94,2.94852851]
[1736984299714,3.11365098,714.15,712.94,2.94852851]
[1736984299918,3.11365098,714.14,712.94,2.94852851]
[1736984300113,1.13921032,714.13,712.94,2.94852851]
[1736984300320,3.11339288,714.12,712.94,2.94852851]
[1736984300517,3.11339288,714.11,712.94,2.94852851]
[1736984300715,3.11339288,714.1,712.94,2.94852851]
[1736984300914,3.11339288,714.09,712.94,2.94852851]
[1736984301118,1.8985099,714.08,712.94,2.94852851]
[1736984301318,1.8985099,714.07,712.94,2.94852851]
[1736984301519,1.8985099,714.06,712.94,2.94852851]
[1736984301714,1.8985099,714.05,712.94,2.94852851]
[1736984301918,1.8985099,714.04,712.94,2.94852851]
[1736984302118,1.04440202,714.29,712.94,2.94852851]
[1736984302316,3.11348192,714.28,712.94,2.94852851]
[1736984302617,3.11348192,714.27,712.94,2.94852851]
[1736984302918,3.11348192,714.26,712.94,2.94852851]
[1736984303112,3.11348192,714.25,712.94,2.94852851]
[1736984303312,3.11348192,714.24,712.94,2.94852851]
[1736984303516,3.11348192,714.23,712.94,2.94852851]
[1736984303714,3.11348192,714.22,712.94,2.94852851]
[1736984303921,3.11348192,714.21,712.94,2.94852851]
[1736984304120,3.11348192,714.2,712.94,2.94852851]
[1736984304321,3.11348192,714.19,712.94,2.94852851]
[1736984304516,3.11348192,714.18,712.94,2.94852851]
[1736984304824,3.11348192,714.17,712.94,2.94852851]
[1736984305016,3.11348192,714.16,712.94,2.94852851]
[1736984305218,3.11348192,714.15,712.94,2.94852851]
[1736984305418,3.11348192,714.14,712.94,2.94852851]
[1736984305619,3.11348192,714.13,712.94,2.94852851]
[1736984305821,3.11348192,714.12,712.94,2.94852851]
[1736984306021,3.11348192,714.11,712.94,2.94852851]
[1736984306218,1.04440202,714.28,712.94,2.94852851]
[1736984306219,3.11348192,714.1,712.94,2.94852851]
[1736984306416,3.11348192,714.09,712.94,2.94852851]
[1736984306621,0.27986902,714.62,712.94,2.94852851]
[1736984306622,3.11348192,714.08,712.94,2.94852851]
[1736984306918,1.89869942,714.07,712.94,2.94852851]
[1736984307118,1.89869942,714.06,712.94,2.94852851]
[1736984307319,1.89869942,714.05,712.94,2.94852851]
[1736984307518,1.89869942,714.04,712.94,2.94852851]
[1736984307720,1.89869942,714.03,712.94,2.94852851]
[1736984308023,1.89869942,714.02,712.94,2.94852851]
[1736984308228,1.89869942,714.01,712.94,2.94852851]
[1736984308425,1.89869942,714.0,712.94,2.94852851]
[1736984308625,1.89869942,713.99,712.94,2.94852851]
[1736984308825,1.13932105,713.98,712.94,2.94852851]
[1736984309025,1.04440202,714.27,712.94,2.94852851]
[1736984309219,3.11377164,714.26,712.94,2.94852851]
[1736984309421,3.11377164,714.25,712.94,2.94852851]
[1736984309623,3.11377164,714.24,712.94,2.94852851]
[1736984309820,3.11377164,714.23,712.94,2.94852851]
[1736984310024,3.11377164,714.22,712.94,2.94852851]
[1736984310223,3.11377164,714.21,712.94,2.94852851]
[1736984310526,3.11377164,714.2,712.94,2.94852851]
[1736984310727,3.11377164,714.19,712.94,2.94852851]
[1736984310926,3.11377164,714.18,712.94,2.94852851]
[1736984311120,3.11377164,714.17,712.94,2.94852851]
[1736984311326,3.11377164,714.16,712.94,2.94852851]
[1736984311528,3.11377164,714.15,712.94,2.94852851]
[1736984311724,3.11377164,714.14,712.94,2.94852851]
[1736984311922,3.11377164,714.13,712.94,2.94852851]
[1736984312228,3.11377164,714.12,712.94,2.94852851]
[1736984312427,3.11388544,714.11,712.94,2.94852851]
[1736984312630,3.11388544,714.1,712.94,2.94852851]
[1736984312827,3.11388544,714.09,712.94,2.94852851]
[1736984313129,1.04440202,714.28,712.94,2.94852851]
[1736984313130,1.8987845,714.08,712.94,2.94852851]
[1736984313331,1.8987845,714.07,712.94,2.94852851]
[1736984313530,1.8987845,714.06,712.94,2.94852851]
[1736984313726,1.8987845,714.05,712.94,2.94852851]
[1736984313928,1.8987845,714.04,712.94,2.94852851]
[1736984314228,1.8987845,714.03,712.94,2.94852851]
[1736984314424,1.8987845,714.02,712.94,2.94852851]
[1736984314724,1.8989231,714.01,712.94,2.94852851]
[1736984314930,1.8989231,714.0,712.94,2.94852851]
[1736984315124,1.8989231,713.99,712.94,2.94852851]
[1736984315328,1.8989231,713.98,712.94,2.94852851]
[1736984315525,1.13945553,713.97,712.94,2.94852851]
[1736984315724,1.04440202,714.32,712.94,2.94852851]
[1736984315928,3.11409152,714.31,712.94,2.94852851]
[1736984316127,4.15849354,714.3,712.94,2.94852851]
[1736984316427,3.11409152,714.29,712.94,2.94852851]
[1736984316626,3.11409704,714.28,712.94,2.94852851]
[1736984316832,3.11409704,714.27,712.94,2.94852851]
[1736984317128,3.11409704,714.26,712.94,2.94852851]
[1736984317430,3.11409704,714.25,712.94,2.94852851]
[1736984317730,3.11409704,714.24,712.94,2.94852851]
[1736984317934,3.11409704,714.23,712.94,2.94852851]
[1736984318133,3.11409704,714.22,712.94,2.94852851]
[1736984318433,3.11409704,714.21,712.94,2.94852851]
[1736984318635,3.11412673,714.2,712.94,2.94852851]
[1736984318835,3.11412673,714.19,712.94,2.94852851]
[1736984319035,0.27986902,714.62,712.94,2.94852851]
[1736984319036,3.11412673,714.18,712.94,2.94852851]
[1736984319335,3.11412673,714.17,712.94,2.94852851]
[1736984319534,3.11412673,714.16,712.94,2.94852851]
[1736984319735,3.11412673,714.15,712.94,2.94852851]